Cogmind - Beta 15 @@@ ROGUE MODE // 2025.06.07 @ 12:31:35 Player: cingulata Result: Self-destructed Performance ------------- Evolutions (4) 2000 Regions Visited (5) 1000 Robots Destroyed (27) 135 Value Destroyed (566) 566 Prototype IDs (0) 0 Alien Tech Used (0) 0 Bonus (67) 67 TOTAL SCORE: 3768 Bonus ------- Follower Combat Kills 67 Cogmind --------- Core Integrity 850/850 Matter 309/400 Energy 350/350 System Corruption 0% Temperature Cool (0) Movement Treading (160) Location -6/Factory Parts ------- > --- POWER (2) -------- Ion Engine Subdweller Power Source > --- PROPULSION (5) --- Light Treads Light Treads Improved Treads > --- UTILITY (6) ------ Heat Sink Disposable Heat Sink High-capacity Storage Unit Medium Matter Pod Weapon Shielding > --- WEAPON (2) ------- Light Cannon Light Cannon > --- INVENTORY (20) --- Large Storage Unit Hacking Suite Beamcaster Light EM Pulse Cannon Light EM Pulse Cannon Assault Rifle Light Cannon Light Cannon Heavy Flak Cannon Grenade Launcher Mini Grenade Launcher Mace Peak State ------------ > --- POWER ------------ Ion Engine Subdweller Power Source > --- PROPULSION ------- Light Treads Light Treads Improved Treads > --- UTILITY ---------- Heat Sink Disposable Heat Sink High-capacity Storage Unit Medium Matter Pod Advanced Sensor Array Weapon Shielding > --- WEAPON ----------- Light Cannon Light Cannon > --- INVENTORY -------- Large Storage Unit Hacking Suite Beamcaster Light EM Pulse Cannon Light EM Pulse Cannon Assault Rifle Light Cannon Light Cannon Heavy Flak Cannon Grenade Launcher Mini Grenade Launcher Mace [Rating: 22] Favorites ----------- Power Ion Engine Engine Ion Engine Propulsion Light Treads Treads Light Treads Wheel Subdweller Monowheel Utility High-capacity Storage Unit Device Seismic Detector Storage High-capacity Storage Unit Protection Weapon Shielding Weapon Light Cannon Energy Gun Particle Gun Ballistic Gun Light Assault Rifle Ballistic Cannon Light Cannon Launcher Grenade Launcher Special Weapon Mining Laser Build | -11 -10 -10 -10 -9 -6 ------- Run | Yrd Mat Min Sub Scr Fac Slots Evolved 8 | . . . . . 8 Power 1 | . . . . . 1 Propulsion 3 | . . . . . 3 Utility 4 | . . . . . 4 Weapon . | . . . . . . Parts Attached 31 | 7 12 2 4 1 5 Power 4 | 1 . 1 1 . 1 Engine 4 | 1 . 1 1 . 1 Core . | . . . . . . Reactor . | . . . . . . Propulsion 8 | 2 1 . 3 1 1 Treads 5 | 2 . . 1 1 1 Leg . | . . . . . . Wheel 3 | . 1 . 2 . . Hover . | . . . . . . Flight . | . . . . . . Utility 8 | 2 3 . . . 3 Device 4 | 1 . . . . 3 Storage 3 | 1 2 . . . . Processor . | . . . . . . Hackware . | . . . . . . Protection 1 | . 1 . . . . Artifact . | . . . . . . Weapon 11 | 2 8 1 . . . Energy Gun 2 | 1 1 . . . . Energy Cannon . | . . . . . . Ballistic Gun 2 | 1 1 . . . . Ballistic Cannon 5 | . 4 1 . . . Launcher 1 | . 1 . . . . Special Weapon 1 | . 1 . . . . Impact Weapon . | . . . . . . Slashing Weapon . | . . . . . . Piercing Weapon . | . . . . . . Special Melee Weapon . | . . . . . . Unidentified Prototypes . | . . . . . . Parts Lost 1 | . . . . . 1 Power . | . . . . . . Propulsion . | . . . . . . Utility 1 | . . . . . 1 Weapon . | . . . . . . Highest Loss Streak 1 | . . . . . 1 To Critical Strikes . | . . . . . . Average Backups 17 | 2 14 20 19 19 13 Power 1 | . 1 2 1 1 . Propulsion 1 | . 1 1 . 1 . Utility 5 | . 5 7 7 6 2 Weapon 8 | . 5 10 9 11 10 Tool/Special . | . . . . . . Unused Backups 18 | . 2 . 6 2 8 Power 3 | . . . 2 1 . Propulsion . | . . . . . . Utility 6 | . 1 . 3 . 2 Weapon 9 | . 1 . 1 1 6 Tool/Special . | . . . . . . Average Slot Usage (%) 87 | . 99 100 100 71 79 Engine 13 | . 14 14 14 14 11 Treads 25 | . 27 28 19 24 20 Wheel 2 | . . . 9 3 . Device 2 | . 4 8 . . 16 Storage 15 | . 18 14 14 14 11 Protection 9 | . 4 5 14 14 6 Energy Gun 2 | . 6 . . . . Ballistic Gun 4 | . 10 2 . . . Ballistic Cannon 9 | . 10 24 28 . 13 Peak Build Rating 22 | 7 9 9 13 12 22 Average Rating 9 | 5 8 9 10 9 21 On Entrance 8 | . 7 9 9 12 11 Naked Turns . | . . . . . . Heaviest Build 62 | 14 53 52 52 52 62 Greatest Support 63 | 40 40 40 40 40 63 Greatest Overweight (x) 4 | . 4 1 2 2 . Average Overweight (x) . | . . 1 1 1 . Largest Inventory Capacity 20 | 8 20 20 20 20 20 Average Capacity 19 | 6 18 20 20 20 20 Most Carried 20 | 4 20 20 20 20 17 Average Carried 17 | 2 14 19 19 19 12 Final Capacity 20 | 8 20 20 20 20 20 Final Carried 20 | 3 20 20 18 18 12 Class Distribution -------------------- 100% | Mutant Dominant Class ---------------- Mutant | -10/Materials Mutant | -10/Mines Mutant | -10/Subcaves Mutant | -9/Scraptown Mutant | -6/Factory Resources | -11 -10 -10 -10 -9 -6 ----------- Run | Yrd Mat Min Sub Scr Fac Matter Collected 1295 | 245 640 104 286 20 . Remotely . | . . . . . . Salvage Created 663 | 10 575 32 38 . 8 Parts 49 | 1 33 9 5 . 1 Haulers Intercepted 1 | . 1 . . . . Recyclers Shooed . | . . . . . . Parts Field Recycled . | . . . . . . Retrieved Matter . | . . . . . . Parts Self-Destructed 9 | . . . 9 . . Prevented . | . . . . . . Kills | -11 -10 -10 -10 -9 -6 ------- Run | Yrd Mat Min Sub Scr Fac Combat Hostiles Destroyed 16 | . 12 3 1 . . Guns 9 | . 9 . . . . Cannons 4 | . 2 1 1 . . AOE 3 | . 1 2 . . . Classes Destroyed 9 | 1 7 . 1 . . Worker 3 | . 3 . . . . Tunneler 2 | 1 . 1 . . . Hauler 1 | . 1 . . . . Recycler 1 | . 1 . . . . Operator 1 | . 1 . . . . Watcher 3 | . 2 . . . 1 Swarmer 6 | . 3 3 . . . Grunt 9 | . 9 . . . . Subdweller 1 | . . . 1 . . Best Kill Streak 3 | 1 3 3 1 . 1 Combat Bots Only 3 | . 2 3 1 . . Max Kills in Single Turn 2 | 1 2 2 1 . 1 Gunslinging . | . . . . . . Exploded 2 | . 1 2 . . . Melee . | . . . . . . Uniques/NPCs Destroyed . | . . . . . . Combat | -11 -10 -10 -10 -9 -6 -------- Run | Yrd Mat Min Sub Scr Fac Hostile Shots Fired 99 | . 78 7 12 . 2 Missed 28 | . 22 2 3 . 1 Hits 71 | . 56 5 9 . 1 Projectile 71 | . 56 5 9 . 1 AOE 1 | . . . 1 . . Critical Strikes 3 | . 3 . . . . Damage Taken 966 | . 675 43 230 . 18 Core 171 | . 151 . 20 . . Absorbed by Shields . | . . . . . . Redirected to Shielding 66 | . 41 . 25 . . Regen/Repaired (Parts) 448 | . 288 . . 160 . Core Remaining (%) 65 | 100 . . . 31 . Volleys Fired 102 | 8 77 3 12 . 2 Largest 2 | 2 2 2 2 . 2 Hottest 100 | 70 100 60 60 . 60 Shots Fired 197 | 16 147 6 24 . 4 Gun 131 | 16 113 2 . . . Cannon 61 | . 30 3 24 . 4 Launcher 3 | . 2 1 . . . Special 2 | . 2 . . . . Kinetic 143 | 8 102 5 24 . 4 Thermal 51 | 8 43 . . . . Explosive 3 | . 2 1 . . . Electromagnetic . | . . . . . . Robot Hit Streak 10 | 5 10 2 6 . 5 Robot Miss Streak 5 | 2 5 2 1 . . Penetration Max . | . . . . . . Secondary Targets . | . . . . . . Shots Hit Robots 116 | 12 85 3 12 . 4 Core Hits 43 | 2 32 3 4 . 2 Critical Kills . | . . . . . . Critical Parts Destroyed . | . . . . . . Critical Strikes 2 | . . . 2 . . Blast 2 | . . . 2 . . Melee Attacks . | . . . . . . Impact . | . . . . . . Slashing . | . . . . . . Piercing . | . . . . . . Sneak Attacks . | . . . . . . Combat Hostiles . | . . . . . . Follow-up Attacks . | . . . . . . Damage Inflicted 1802 | 135 1266 120 211 . 70 Guns 996 | 134 862 . . . . Cannons 603 | . 284 38 211 . 70 Explosions 167 | . 102 65 . . . Melee . | . . . . . . Ramming 36 | 1 18 17 . . . Kinetic 1142 | 46 777 38 211 . 70 Thermal 457 | 88 369 . . . . Explosive 167 | . 102 65 . . . Electromagnetic . | . . . . . . Impact . | . . . . . . Slashing . | . . . . . . Piercing . | . . . . . . Highest Corruption . | . . . . . . Average Corruption . | . . . . . . Corruption Purged . | . . . . . . Corruption Blocked . | . . . . . . Overload Shots . | . . . . . . Overflow Damage 2 | . 2 . . . . Projectiles 2 | . 2 . . . . Explosions . | . . . . . . Melee . | . . . . . . Knockbacks 4 | . 2 1 1 . . Impact . | . . . . . . Kinetic 3 | . 1 1 1 . . Secondary 1 | . 1 . . . . Self-Inflicted Damage . | . . . . . . Shots . | . . . . . . Rammed 7 | 2 3 2 . . . Targets Rammed 9 | 2 4 3 . . . Kicked . | . . . . . . Crushed 2 | . 1 1 . . . Highest Temperature 274 | 90 274 . . . . Average Temperature 80 | 43 84 . . . . Received Heat Transfer 423 | . 384 . 30 . 9 Effects 1 | . 1 . . . . Interference 1 | . 1 . . . . Siege Activations . | . . . . . . Martial Activations . | . . . . . . Shielding Activations . | . . . . . . Robots Disrupted . | . . . . . . Combat Hostiles . | . . . . . . Robots Corrupted . | . . . . . . Combat Hostiles . | . . . . . . Parts Fried . | . . . . . . Impact Corruptions . | . . . . . . Robots Melted . | . . . . . . Combat Hostiles . | . . . . . . Parts Melted 4 | . 4 . . . . Heat Transferred 1184 | 259 925 . . . . Parts Sabotaged . | . . . . . . Parts Stolen . | . . . . . . Parts Stripped . | . . . . . . Power Chain Reactions . | . . . . . . Alert | -11 -10 -10 -10 -9 -6 ------- Run | Yrd Mat Min Sub Scr Fac Maximum Alert Level . | . . . . . . Low Security (%) 100 | 100 100 100 . . 100 Level 1 . | . . . . . . Level 2 . | . . . . . . Level 3 . | . . . . . . Level 4 . | . . . . . . Level 5 . | . . . . . . High Security . | . . . . . . Max Security . | . . . . . . Peak Influence 90 | 5 83 90 . . . Initial . | . . . . . . Average 13 | . 15 11 . . . Influence Increases 582 | 5 452 95 23 . 7 Destroy 0b10 Robot/C 320 | . 240 60 20 . . Destroy 0b10 Robot/NC 55 | 5 40 5 . . 5 Destroy Leader 78 | . 66 10 . . 2 Allied During Kill 3 | . . . 3 . . Successful Hack 69 | . 69 . . . . Disable Machine 15 | . . 15 . . . Destroy Structure 27 | . 22 5 . . . Lose Combat Pursuer 15 | . 15 . . . . Influence Decreases 582 | 5 452 95 23 . 7 Time Decay 498 | 5 398 95 . . . Lost Part 7 | . . . . . 7 Lost Ally 23 | . . . 23 . . Purge Threat 54 | . 54 . . . . Squads Dispatched 1 | . 1 . . . . Investigation . | . . . . . . Extermination . | . . . . . . Reinforcement 1 | . 1 . . . . Assault . | . . . . . . Garrison . | . . . . . . Intercept . | . . . . . . Searches Triggered . | . . . . . . Construction Impeded . | . . . . . . Haulers Reinforced . | . . . . . . Active Scanning Responses . | . . . . . . Cargo Convoy Interrupts . | . . . . . . Stealth | -11 -10 -10 -10 -9 -6 --------- Run | Yrd Mat Min Sub Scr Fac Distress Signals 3 | . 2 . . . 1 Communications Jammed . | . . . . . . Distress Signals . | . . . . . . Times Spotted 47 | . 30 3 11 . 3 Peak Tracking Total 4 | . 4 3 4 . 3 Tactical Retreats 1 | . 1 . . . . Traps | -11 -10 -10 -10 -9 -6 ------- Run | Yrd Mat Min Sub Scr Fac Traps Triggered . | . . . . . . Indirectly . | . . . . . . Trap Hack Attempts . | . . . . . . Triggered . | . . . . . . Disarmed . | . . . . . . Reprogrammed . | . . . . . . Reused . | . . . . . . Traps Extracted . | . . . . . . Installed . | . . . . . . Triggered . | . . . . . . Machines | -11 -10 -10 -10 -9 -6 ---------- Run | Yrd Mat Min Sub Scr Fac Machines Disabled 1 | . . 1 . . . Max in Single Turn 1 | . . 1 . . . Machines Repaired . | . . . . . . Machines Dismantled . | . . . . . . Machines Sabotaged . | . . . . . . Overloaded Fab Kills . | . . . . . . Hacking | -11 -10 -10 -10 -9 -6 --------- Run | Yrd Mat Min Sub Scr Fac Machines Accessed 11 | . 11 . . . . Terminals 8 | . 8 . . . . Fabricators . | . . . . . . Repair Stations 1 | . 1 . . . . Recycling Units 2 | . 2 . . . . Scanalyzers . | . . . . . . Garrison Access . | . . . . . . Total Hacks 40 | . 40 . . . . Successful 28 | . 28 . . . . Failed 11 | . 11 . . . . Catastrophic 2 | . 2 . . . . Database Lockouts 1 | . 1 . . . . Manual 18 | . 18 . . . . Terminals 25 | . 25 . . . . Fabricators . | . . . . . . Repair Stations 12 | . 12 . . . . Recycling Units 3 | . 3 . . . . Scanalyzers . | . . . . . . Garrison Access . | . . . . . . Terminal Hacks 10 | . 10 . . . . Record 1 | . 1 . . . . Robot Analysis 3 | . 3 . . . . Alert Level 1 | . 1 . . . . Unreport Threat 2 | . 2 . . . . Locate Traps 1 | . 1 . . . . Hauler Manifests 1 | . 1 . . . . Registered Prototypes 1 | . 1 . . . . Fabricator Hacks . | . . . . . . Repair Station Hacks 12 | . 12 . . . . Scan Component 6 | . 6 . . . . Repair 6 | . 6 . . . . Recycling Unit Hacks 2 | . 2 . . . . Report Inventory 2 | . 2 . . . . Scanalyzer . | . . . . . . Garrison Access Hacks . | . . . . . . Unauthorized Hacks 4 | . 4 . . . . Terminals 4 | . 4 . . . . Botnet 4 | . 4 . . . . Fabricators . | . . . . . . Repair Stations . | . . . . . . Recycling Units . | . . . . . . Scanalyzers . | . . . . . . Garrison Access . | . . . . . . Data Cores Recovered . | . . . . . . Used . | . . . . . . Hacking Detections 10 | . 10 . . . . Full Trace Events . | . . . . . . Feedback Events . | . . . . . . Feedback Blocked . | . . . . . . Robot Schematics Acquired . | . . . . . . Robots Built . | . . . . . . Authchips . | . . . . . . Time . | . . . . . . Total Robot Build Rating . | . . . . . . Part Schematics Acquired . | . . . . . . Parts Built . | . . . . . . Authchips . | . . . . . . Time . | . . . . . . Total Part Build Rating . | . . . . . . Parts Repaired 6 | . 6 . . . . Time 162 | . 162 . . . . Parts Recycled . | . . . . . . Recycled Matter . | . . . . . . Retrieved Matter . | . . . . . . Retrieved Components . | . . . . . . Parts Scanalyzed . | . . . . . . Part Schematics Acquired . | . . . . . . Parts Damaged . | . . . . . . Bothacking | -11 -10 -10 -10 -9 -6 ------------ Run | Yrd Mat Min Sub Scr Fac Used RIF Installer . | . . . . . . Robots Hacked . | . . . . . . Non-combat . | . . . . . . Combat . | . . . . . . Robot Hacks Applied . | . . . . . . Relay Couplers Released . | . . . . . . Fabnet Peak Effective % . | . . . . . . Robots Rewired . | . . . . . . Allies Hacked . | . . . . . . Hacks Repelled . | . . . . . . Allies | -11 -10 -10 -10 -9 -6 -------- Run | Yrd Mat Min Sub Scr Fac Total Allies 3 | . . 3 . . . Largest Group 3 | . . 3 3 . . Highest-Rated Group 40 | . . 40 40 . . Highest-Rated Ally 16 | . . 16 16 . . Total Orders . | . . . . . . Ally Attacks 17 | . . . 17 . . Total Damage 208 | . . . 208 . . Kills 3 | . . . 3 . . Allies Corrupted . | . . . . . . Allies Melted . | . . . . . . Intel | -11 -10 -10 -10 -9 -6 ------- Run | Yrd Mat Min Sub Scr Fac Active Infowar (turns) 1232 | 27 675 494 . . 36 Sensors 36 | . . . . . 36 Seismic 1196 | 27 675 494 . . . Robot Analysis Total 3 | . 3 . . . . Derelict Logs Recovered 3 | . . 1 1 1 . Drone Launches . | . . . . . . Drone Recoveries . | . . . . . . Exploration | -11 -10 -10 -10 -9 -6 ------------- Run | Yrd Mat Min Sub Scr Fac Turns Passed 5874 | 112 2234 768 407 2312 41 Spaces Moved 2322 | 48 780 309 198 969 18 Core 3 | 3 . . . . . Treads 2114 | 45 777 309 93 872 18 Legs . | . . . . . . Wheels 205 | . 3 . 105 97 . Hover . | . . . . . . Flight . | . . . . . . Fastest Speed 50 | 50 140 240 120 120 160 Average Speed 225 | 153 223 240 177 236 160 Slowest Speed 320 | 160 320 240 240 320 160 Overloaded Moves . | . . . . . . Propulsion Burnouts . | . . . . . . Robots Hopped . | . . . . . . Potential Cave-ins . | . . . . . . Cave-ins Triggered . | . . . . . . Exploration Rate (%) 39 | 4 98 58 14 60 1 Regions Visited 5 Branch Regions 3 Pre-discovered Areas 1 | . . . 1 . . Known Exits Taken . | . . . . . . Unknown Exits Taken 5 | 1 1 1 1 1 . Scrap Searched 6 | . . 1 . 5 . Spaces Dug 2 | . 2 . . . . Terrain Destroyed 24 | . 19 5 . . . Melee . | . . . . . . Projectile 2 | . 2 . . . . AOE 22 | . 17 5 . . . Terrain Rammed . | . . . . . . Walls Destroyed . | . . . . . . Machines Disabled . | . . . . . . Actions | -11 -10 -10 -10 -9 -6 --------- Run | Yrd Mat Min Sub Scr Fac Total 2752 | 68 1112 325 232 989 26 Wait 189 | . 188 . . 1 . Move 2317 | 47 779 308 197 968 18 Hop . | . . . . . . Pick Up 44 | 4 23 2 8 7 . Fast Attach 11 | 6 5 . . . . Attach 10 | 1 1 . . 2 6 Detach 4 | . 2 . . 2 . Swap 42 | . 28 7 5 2 . Drop 24 | . 5 2 10 7 . Fire 102 | 8 77 3 12 . 2 Melee . | . . . . . . Ram . | . . . . . . Kick . | . . . . . . Crush 9 | 2 4 3 . . . Escape Stasis . | . . . . . . Rewire . | . . . . . . Trap . | . . . . . . Miscellaneous . | . . . . . . Route ------- -11/Scrapyard -10/Materials (discovered 4 exits: [*Mat x3] / [*Min]) -10/Mines (discovered 2 exits: [*Mat] / [*Sub]) -10/Subcaves -9/Scraptown -6/Factory History --------- Turn | Location | Event 21 | -11/Scrapyard | Discovered new exit (range 16) 113 | -11/Scrapyard | Entered Materials 304 | -10/Materials | Build established: Mutant 398 | -10/Materials | Discovered new exit (range 14) 767 | -10/Materials | Discovered new exit (range 8) 895 | -10/Materials | Core integrity fell below 50% 932 | -10/Materials | Repaired Lgt. Treads 958 | -10/Materials | Repaired Weapon Shielding 993 | -10/Materials | Repaired Lgt. Treads 1026 | -10/Materials | Repaired Particle Gun 1055 | -10/Materials | Repaired Lgt. Treads 1083 | -10/Materials | Repaired Assault Rifle 1299 | -10/Materials | Central database locked down 1563 | -10/Materials | Discovered new exit (range 14) 1993 | -10/Materials | Discovered new exit (range 16) 2347 | -10/Materials | Entered Mines 2823 | -10/Mines | Learned 4 Materials zone layouts 2852 | -10/Mines | Assisted by bots powering up and referring to "LRC-V3" 3046 | -10/Mines | Discovered new exit (range 5) 3091 | -10/Mines | Discovered new exit (range 10) 3115 | -10/Mines | Entered Subcaves 3115 | -10/Subcaves | Accompanied by 3 allies 3116 | -10/Subcaves | Approached by a straggling Scientist 3226 | -10/Subcaves | Ambushed by swarm of Subdwellers 3317 | -10/Subcaves | Learned location of Zion (-7) 3321 | -10/Subcaves | Shifting Twisted Machinery released Flamer 3344 | -10/Subcaves | Ambushed by Subdwellers from Twisted Machinery 3521 | -10/Subcaves | Scientist uncovered a shortcut to Scraptown 3522 | -10/Subcaves | Entered Scraptown 3581 | -9/Scraptown | Heard Great Nut preacher, LISTEN AND RECITE! 4190 | -9/Scraptown | Visited Comm Corps 4327 | -9/Scraptown | Visited CR-KLE's Repair Center 4344 | -9/Scraptown | CR-KLE repaired 4 parts 4387 | -9/Scraptown | Visited Bundlers 4569 | -9/Scraptown | Visited The Evicted 4612 | -9/Scraptown | Visited Spacefarers 4734 | -9/Scraptown | Visited Shadow of the Wyrm 4840 | -9/Scraptown | Visited UFD Registry 4869 | -9/Scraptown | Visited TADAMA 5622 | -9/Scraptown | Scanned Subdweller tech in exchange for log data 5629 | -9/Scraptown | Learned Research emergency access door positions 5663 | -9/Scraptown | Discovered new exit (range 7) 5834 | -9/Scraptown | Entered Factory 5834 | -6/Factory | Evolved 8 slots: Power x1, Propulsion x3, Utility x4 5875 | -6/Factory | Self-destructed Last Messages --------------- on you? Just step into our machine here for a quick scan and we'll reward you with valuable knowledge for your troubles. QUICKSCAN^tm: Scanned 1 Subdweller components. Printing 1 log. 05624_ NJ-CBI(c): "Thank you! May your journeys be full of scrap!" 05629_ Acquired derelict log, extracted data. Data stored: Research emergency access points. 05663_ EXIT=FOUND P9-4CP(E): We are 0bPrime. We are one. PARAMETERS=POWER+1,PROPULSION+3,UTILITY+4 LOCATION=UNKNOWN GOAL=ESCAPE 05866_ W-25 Informer sends out distress signal. 05867_ ALERT: All DSF locations entering lockdown mode. 05872_ W-25 Informer destroyed. 05872_ Adv. Sensor Array destroyed. Map ----- +----------------------------------------------------+ | ???????????????????????????????????????? | | ???????????????????????????????????????? | | ???????????????????????????????????????? | | ???????????????????????????????????????? | | ???????????????????????????????????????? | | ???????????????????????????????????????? | | ???????????????????????????????????????? | | ???????????????????????????????????????? | | ???????????????????????????????????????? | | ???????????????????????????????????????? | | ???????????????????????????????????????? | | ???????????????????????????????????????? | | ???????????????????????????????????????? | | ???????????????????????????????????????? | | ???????????????????????????????????????? | | ????????#??????????????????????????????? | | ????????# ?????????????????????????????? | | ????????#g######+#+###?????????????????? | | ????????#% % % #?????????????????? | | ????????# ! ##### #???????????? | | ????????? #???????????? | | ??????????g #???????????? | | ??????????? #???????????? | | ????????????# / #???????????? | | ????????????# ????????????? | | ????????????# @ """ ""???????????????? | | ????????????# """ """ ?????????????? | | ????????????# """ """??????????????? | | ????????????# ?????????? | | ??###########+## ?????????? | | ??# # ########??????????? | | ??# # #?????????????????? | | ??# """"""" # #?????????????????? | | ??? """"""" # #?????????????????? | | ????""""""" # #?????????????????? | | ?????"""""" + #?????????????????? | | ??? # #?????????????????? | | ??# """"""" # #?????????????????? | | ?????"""""" # #?????????????????? | | ?????"""""" #######?????????????????? | | ??????""""" #???????????????????????? | | ??????? #???????????????????????? | | ???????#########???????????????????????? | | ???????????????????????????????????????? | | ???????????????????????????????????????? | | ???????????????????????????????????????? | | ???????????????????????????????????????? | | ???????????????????????????????????????? | | ???????????????????????????????????????? | | ???????????????????????????????????????? | +----------------------------------------------------+ Best States ------------- Heat Dissipation 47 Coolant Potential 50 Energy Generation 20 Energy Capacity 350 Matter Stores 320 Matter Capacity 400 Sight Range 16 Robot Scan Range 16 Terrain Scan Density 10 Weapon Shielding 33 Evasion (%) 40 Recoil Reduction 3 Item Schematics ----------------- None Robot Schematics ------------------ None Fabricated ------------ Nothing Repaired ---------- Weapon Shielding | 30% | -10/Materials Lgt. Treads | 13% | -10/Materials Particle Gun | 46% | -10/Materials Lgt. Treads | 68% | -10/Materials Assault Rifle | 52% | -10/Materials Alien Tech Used ----------------- None Achievements -------------- None Challenges ------------ None Game ------ Seed GrenadeConcussiveCharge Manual? 0 Play Time 00:51:33 Cumulative 29.1 hours Start 2025.06.07 @ 11:40:00 End 2025.06.07 @ 12:31:35 Sessions 1 Manual Loads 0 Difficulty Rogue Special Mode None Game No. 21 Rogue 21 Adventurer 0 Explorer 0 Win Type - Total 0 Types 0/0/0/0/0/0/0/0/0/0 Lore% 21 Gallery% 19 Achievement% 19 Wizard Run 0 Options --------- Layout 1 ASCII 0 Keyboard 0 Movement Numpad Keybinds 0 Fullscreen 1 Font 32/SmallcapsGlow Map View 50x35 Zoom Use 0% Tactical HUD 1 Map Filters NONE Filters NONE Steam 1 RUN: e770b92b-4ee7-4cb1-a878-1a5b2eca594c